bitfinex-derivatives/quotes_SOLF0:USTF0_20250323
["timestamp","ask_amount","ask_price","bid_price","bid_amount"]
[1742706914949,7.36890697,129.84,129.83,0.05319875]
[1742706915351,15.07200697,129.84,129.83,0.05319875]
[1742706916753,15.12905841,129.85,129.83,0.05319875]
[1742706918654,0.05745144,129.85,129.83,7.75679875]
[1742706918853,0.05745144,129.85,129.83,0.05319875]
[1742706919049,0.05745144,129.85,129.83,7.42210572]
[1742706919359,0.05745144,129.85,129.84,27.4]
[1742706920251,0.05745144,129.85,129.83,0.05319875]
[1742706920856,7.75995144,129.85,129.83,0.05319875]
[1742706921452,0.05745144,129.85,129.83,0.05319875]
[1742706923055,7.76035144,129.85,129.83,0.05319875]
[1742706926547,0.05745144,129.85,129.83,7.75689875]
[1742706929758,7.42635841,129.85,129.83,7.75689875]
[1742706929957,15.12885841,129.85,129.83,35.07689875]
[1742706931960,15.12885841,129.85,129.83,27.37319875]
[1742706933464,15.12885841,129.85,129.83,35.07689875]
[1742706933962,7.42635841,129.85,129.83,35.07689875]
[1742706934765,0.05745144,129.85,129.83,35.07689875]
[1742706935773,0.05745144,129.85,129.84,7.7031]
[1742706940170,7.42635841,129.85,129.84,7.7031]
[1742706941573,7.42635841,129.85,129.83,35.07659875]
[1742706941873,0.05745144,129.85,129.83,27.37319875]
[1742706942566,0.05745144,129.85,129.84,7.7031]
[1742706946376,0.05745144,129.85,129.83,35.07659875]
[1742706947780,7.42635841,129.85,129.83,35.07659875]
[1742706949785,0.05745144,129.85,129.83,35.07659875]
[1742706950980,7.76005144,129.85,129.83,35.07659875]
[1742706951284,0.05745144,129.85,129.83,35.07659875]
[1742706953385,15.12925841,129.85,129.83,27.37319875]
[1742706955487,7.7031,129.84,129.83,27.37319875]
[1742706956586,15.12905841,129.85,129.83,27.37319875]
[1742706960993,7.76015144,129.85,129.83,27.37319875]
[1742706961191,0.05745144,129.85,129.83,35.07669875]
[1742706967595,7.75995144,129.85,129.83,35.07669875]
[1742706968404,7.75995144,129.85,129.83,27.37319875]
[1742706970206,7.7031,129.84,129.83,27.37319875]
[1742706971912,15.12915841,129.85,129.83,27.37319875]
[1742706972103,7.76025144,129.85,129.83,27.37319875]
[1742706972610,0.05745144,129.85,129.83,27.37319875]
[1742706973509,0.05745144,129.85,129.84,7.7031]
[1742706980614,0.05745144,129.85,129.83,35.07669875]
[1742706981805,0.05745144,129.85,129.84,7.7031]
[1742706982006,7.36890697,129.9,129.84,7.36890697]
[1742706982311,15.06830697,129.91,129.88,7.7006]
[1742706982511,15.06830697,129.91,129.88,35.0006]
[1742706983113,15.12707441,129.91,129.88,35.05246285]
[1742706983314,7.42767441,129.91,129.89,7.7]
[1742706983814,7.42767441,129.91,129.88,27.35186285]
[1742706984115,7.42767441,129.91,129.88,35.05246285]
[1742706986012,15.12677441,129.91,129.88,35.05246285]
[1742706990614,7.6996,129.9,129.88,35.05246285]
[1742706991118,7.6996,129.9,129.88,27.35186285]
[1742706991320,15.06850697,129.9,129.88,27.35186285]
[1742706995520,0.05876744,129.91,129.88,35.05226285]
[1742706995521,15.12687441,129.91,129.88,35.05226285]
[1742706998030,15.12687441,129.91,129.89,7.7001]
[1742706998325,7.42767441,129.91,129.89,7.7001]
[1742706999527,0.05876744,129.91,129.89,7.7001]
[1742706999729,0.05876744,129.91,129.9,7.6996]
[1742707002329,0.05876744,129.91,129.9,15.06850697]
[1742707002534,15.06630697,129.94,129.91,7.6988]
[1742707002738,15.06630697,129.94,129.92,27.28]
[1742707003535,15.11766597,129.94,129.92,27.33739269]
[1742707004339,7.42026597,129.94,129.92,35.03579269]
[1742707005135,15.11756597,129.94,129.92,35.03579269]
[1742707006237,15.11756597,129.94,129.92,27.33739269]
[1742707010243,15.11756597,129.94,129.92,35.03569269]
[1742707010944,15.11756597,129.94,129.92,27.33739269]
[1742707011741,7.42026597,129.94,129.92,35.03569269]
[1742707012444,7.42026597,129.94,129.92,27.33739269]
[1742707012744,15.11746597,129.94,129.92,27.33739269]
[1742707013649,7.42026597,129.94,129.92,35.03569269]
[1742707014440,0.051359,129.94,129.92,35.03569269]
[1742707020050,7.748659,129.94,129.92,35.03569269]
[1742707020251,15.11756597,129.94,129.92,27.33739269]
[1742707022752,15.06670697,129.93,129.92,0.05739269]
[1742707022947,0.051359,129.94,129.92,0.05739269]
[1742707022948,7.42026597,129.94,129.92,0.05739269]
[1742707023354,0.051359,129.94,129.92,0.05739269]
[1742707024850,7.36890697,129.99,129.93,27.28]
[1742707025048,7.36890697,129.99,129.94,7.36890697]
[1742707025253,15.06330697,129.99,129.96,7.6959]
[1742707025956,15.06330697,129.99,129.96,7.75301077]
[1742707026156,15.11393357,129.99,129.96,7.75301077]
[1742707026358,7.41953357,129.99,129.96,7.75301077]
[1742707027758,15.11383357,129.99,129.96,7.75301077]
[1742707028657,7.41953357,129.99,129.96,0.05711077]
[1742707029049,7.41953357,129.99,129.96,27.33711077]
[1742707029453,15.11413357,129.99,129.96,27.33711077]
[1742707029757,7.41953357,129.99,129.96,27.33711077]
[1742707030557,7.695,129.98,129.96,27.33711077]
[1742707031259,15.06430697,129.97,129.96,27.33711077]
[1742707031461,15.06430697,129.97,129.96,0.05711077]
[1742707041869,7.6972,129.94,129.93,27.28]
[1742707042168,15.06610697,129.94,129.93,27.28]
[1742707042469,7.36890697,129.94,129.92,253.98]
[1742707042968,7.6978,129.93,129.92,253.98]
[1742707043268,7.6978,129.93,129.92,0.05815595]
[1742707047174,15.06670697,129.93,129.92,0.05815595]
[1742707094914,0.0507654,129.94,129.92,0.05815595]
[1742707095415,0.0507654,129.94,129.92,15.12516292]
[1742707098313,0.0507654,129.94,129.93,7.6978]
[1742707098514,0.0507654,129.94,129.93,34.9578]
[1742707099014,0.0507654,129.94,129.93,42.32670697]
[1742707099209,10.61999279,129.99,129.93,34.62890697]
[1742707099411,10.61999279,129.99,129.96,7.36890697]
[1742707099618,10.61999279,129.99,129.97,7.6951]
[1742707099811,7.38489279,129.99,129.98,7.36890697]
[1742707100018,0.91479279,129.99,129.98,7.36890697]
[1742707100218,0.91479279,129.99,129.98,15.06370697]
[1742707100817,0.05226997,130.0,129.98,15.06370697]
[1742707103319,0.05226997,130.0,129.97,17.15171848]
[1742707103527,7.36890697,129.99,129.97,2.08761151]
[1742707103725,7.36890697,129.99,129.97,0.04861151]
[1742707104524,7.6948,129.98,129.97,0.04861151]
[1742707110721,15.06340697,129.99,129.97,0.04861151]
[1742707110926,7.42117694,130.0,129.97,0.04861151]
[1742707111625,7.6943,129.99,129.97,0.04861151]
[1742707122034,15.11507694,130.0,129.97,7.74401151]
[1742707127845,15.11507694,130.0,129.97,0.04861151]
[1742707127846,7.36890697,129.99,129.97,0.04861151]
[1742707128039,7.36890697,129.98,129.97,0.04861151]
[1742707128444,15.06370697,129.98,129.97,0.04861151]
[1742707140454,7.6948,129.98,129.97,0.04861151]
[1742707144157,15.06340697,129.99,129.97,0.04861151]
[1742707148966,7.6948,129.98,129.97,0.04861151]
[1742707149568,15.06340697,129.99,129.97,0.04861151]
[1742707150367,7.6945,129.99,129.97,0.04861151]
[1742707151170,15.11507694,130.0,129.97,7.74391151]
[1742707153466,7.42117694,130.0,129.97,0.04861151]
[1742707153669,0.05226997,130.0,129.97,0.04861151]
[1742707153864,0.05226997,130.0,129.99,7.6942]
[1742707154866,0.05226997,130.0,129.97,0.04861151]
[1742707155067,7.42117694,130.0,129.97,0.04861151]
[1742707155466,7.36890697,129.99,129.97,0.04861151]
[1742707156873,7.36890697,129.98,129.97,0.04861151]
[1742707157069,15.06370697,129.98,129.97,0.04861151]
[1742707162075,7.6972,129.95,129.92,254.0]
[1742707162277,7.6972,129.95,129.93,27.24]
[1742707163284,7.75212029,129.95,129.93,27.29670545]
[1742707164079,7.6972,129.94,129.93,0.05670545]
[1742707164279,15.06610697,129.94,129.93,0.05670545]
[1742707169685,7.36890697,129.94,129.87,253.92]
[1742707169887,7.36890697,129.91,129.87,281.18]
[1742707170483,7.6997,129.9,129.87,281.18]
[1742707170787,7.74929155,129.9,129.87,288.5986442]
[1742707170987,7.74929155,129.9,129.87,296.2995442]
[1742707171382,0.04959155,129.9,129.87,296.2995442]
[1742707173985,0.04959155,129.9,129.88,7.7006]
[1742707174183,0.04959155,129.9,129.88,7.36890697]
[1742707174485,0.04959155,129.9,129.89,7.36890697]
[1742707174691,0.04959155,129.9,129.89,15.06910697]
[1742707181793,0.04959155,129.9,129.89,34.9602]
[1742707184994,0.04959155,129.9,129.89,27.26]
[1742707196606,7.74919155,129.9,129.89,27.26]
[1742707196806,0.04959155,129.9,129.89,27.26]
[1742707198103,0.04959155,129.9,129.88,7.7006]
[1742707198301,0.04959155,129.9,129.88,34.9606]
[1742707200002,7.74919155,129.9,129.88,34.9606]
[1742707200305,0.04959155,129.9,129.87,27.30973723]
[1742707200508,7.7005,129.89,129.87,27.30973723]
[1742707200708,0.04959155,129.9,129.88,7.36890697]
[1742707201404,0.04959155,129.9,129.88,15.06920697]
[1742707202309,7.74919155,129.9,129.88,15.06920697]
[1742707202609,7.36890697,129.89,129.87,0.04973723]
[1742707202913,7.7008,129.88,129.87,0.04973723]
[1742707203809,7.7004,129.89,129.87,0.04973723]
[1742707204513,15.11829852,129.9,129.87,0.04973723]
[1742707206415,15.11829852,129.9,129.87,7.75093723]
[1742707214423,7.74939155,129.9,129.88,7.7007]
[1742707215022,0.04959155,129.9,129.88,7.7007]
[1742707219225,7.36890697,129.89,129.87,0.04973723]
[1742707219621,15.06940697,129.89,129.87,0.04973723]
[1742707221621,7.36890697,129.88,129.87,0.04973723]
[1742707221928,7.36890697,129.88,129.83,27.26]
[1742707222120,7.36890697,129.86,129.83,27.26]
[1742707222322,15.07110697,129.86,129.83,27.26]
[1742707222720,7.36890697,129.85,129.83,27.26]
[1742707223019,7.42118649,129.85,129.83,0.05159318]
[1742707223223,15.12408649,129.85,129.83,0.05159318]
[1742707223425,7.42118649,129.85,129.83,0.05159318]
[1742707223620,7.36890697,129.84,129.76,1.9521]
[1742707223926,15.07360697,129.82,129.78,15.07520697]
[1742707224127,7.36890697,129.83,129.78,15.07520697]
[1742707224327,7.7044,129.82,129.78,15.07520697]
[1742707224720,0.0516133,129.81,129.79,0.04960901]
[1742707224925,0.0516133,129.81,129.79,7.75550901]
[1742707225433,0.0516133,129.81,129.79,35.01550901]
[1742707225925,0.0516133,129.81,129.79,42.38441598]
[1742707228335,0.0516133,129.81,129.8,7.7055]
[1742707229733,7.36890697,129.86,129.83,7.7037]
[1742707229933,34.62890697,129.86,129.83,7.7037]
[1742707231038,34.68513576,129.86,129.83,7.75837857]
[1742707231740,42.38723576,129.86,129.83,0.05467857]
[1742707232035,7.36890697,129.85,129.83,0.05467857]
[1742707233438,15.07150697,129.85,129.83,0.05467857]
[1742707234740,7.36890697,129.84,129.83,0.05467857]
[1742707237341,7.36890697,129.85,129.83,0.05467857]
[1742707237639,7.36890697,129.85,129.83,7.75827857]
[1742707238341,7.36890697,129.85,129.83,0.05467857]
[1742707238542,15.07150697,129.85,129.83,0.05467857]
[1742707239140,7.36890697,129.85,129.83,0.05467857]
[1742707239941,7.36890697,129.85,129.83,7.75837857]
[1742707241942,7.36890697,129.84,129.83,0.05467857]
[1742707242744,15.07200697,129.84,129.83,0.05467857]
[1742707243745,7.36890697,129.84,129.83,0.05467857]
[1742707244344,7.36890697,129.85,129.83,0.05467857]
[1742707244546,7.42513576,129.86,129.83,0.05467857]
[1742707245346,7.42513576,129.86,129.84,7.7028]
[1742707245544,0.05622879,129.86,129.83,0.05467857]
[1742707245740,0.05622879,129.86,129.84,7.36890697]
[1742707246548,7.42513576,129.86,129.83,0.05467857]
[1742707247043,0.05622879,129.86,129.83,7.42358554]
[1742707248546,0.05622879,129.86,129.85,7.7025]
[1742707251854,0.05622879,129.86,129.84,7.7028]
[1742707252046,0.05622879,129.86,129.83,0.05467857]
[1742707252365,0.05622879,129.86,129.85,7.7025]
[1742707255358,0.05622879,129.86,129.85,42.33140697]
[1742707255560,29.3995,129.92,129.88,7.7003]
[1742707255762,7.36890697,129.9,129.88,7.7003]
[1742707256754,0.04886563,129.9,129.89,7.7002]
[1742707257965,0.04886563,129.9,129.89,15.06910697]
[1742707258363,7.36890697,129.94,129.92,7.6981]
[1742707259268,7.36890697,129.94,129.91,34.9587]
[1742707259459,7.42709691,129.94,129.91,35.00716083]
[1742707259665,0.05818994,129.94,129.91,27.30846083]
[1742707262378,7.42709691,129.94,129.91,27.30846083]
[1742707263472,15.12449691,129.94,129.91,27.30846083]
[1742707264574,0.05818994,129.94,129.91,34.6773678]
[1742707265073,0.05818994,129.94,129.92,7.6981]
[1742707266473,0.05818994,129.94,129.93,7.6978]
[1742707267778,0.05818994,129.94,129.92,17.11050697]
[1742707268175,0.05818994,129.94,129.92,9.41230697]
[1742707268478,0.05818994,129.94,129.93,7.6978]
[1742707268975,0.05818994,129.94,129.92,17.11040697]
[1742707269375,0.05818994,129.94,129.92,9.41230697]
[1742707269978,0.05818994,129.94,129.93,15.06670697]
[1742707270171,0.05818994,129.94,129.93,7.6978]
[1742707272078,0.05818994,129.94,129.92,17.11050697]
[1742707272576,0.05818994,129.94,129.92,2.0434]
[1742707272771,7.75548994,129.94,129.92,2.0434]
[1742707273681,7.6979,129.93,129.91,27.30846083]
[1742707274377,15.12459691,129.94,129.91,35.00736083]
[1742707274577,7.75568994,129.94,129.91,35.00736083]
[1742707274971,7.75568994,129.94,129.91,42.3762678]
[1742707276176,7.75568994,129.94,129.92,7.6984]
[1742707276371,0.05818994,129.94,129.92,7.6984]
[1742707276683,0.05818994,129.94,129.93,7.6978]
[1742707284075,0.05818994,129.94,129.92,15.06700697]
[1742707284276,0.05818994,129.94,129.92,7.36890697]
[1742707284974,7.75578994,129.94,129.91,0.04846083]
[1742707285181,7.42709691,129.94,129.92,27.22]
[1742707285578,7.6979,129.93,129.92,27.22]
[1742707285977,7.42709691,129.94,129.91,0.04846083]
[1742707286177,7.6984,129.92,129.91,27.26846083]
[1742707286884,15.06730697,129.92,129.91,27.26846083]
[1742707287185,15.06730697,129.92,129.91,0.04846083]
[1742707294892,7.6984,129.92,129.91,0.04846083]
[1742707303403,0.05818994,129.94,129.91,0.04846083]
[1742707303904,7.75568994,129.94,129.91,15.1159678]
[1742707305304,7.6979,129.93,129.91,7.4173678]
[1742707307207,7.6979,129.93,129.91,15.1163678]
[1742707307501,0.05818994,129.94,129.91,15.1163678]
[1742707307707,7.75558994,129.94,129.91,15.1163678]
[1742707309895,0.05818994,129.94,129.91,7.4173678]
[1742707310098,0.05818994,129.94,129.93,7.36890697]
[1742707310303,0.05818994,129.94,129.93,34.58890697]
[1742707311612,0.05818994,129.94,129.93,42.28670697]
[1742707324923,0.05818994,129.94,129.93,34.9178]
[1742707329022,0.05818994,129.94,129.91,0.04846083]
[1742707329228,7.36890697,129.93,129.91,27.26846083]
[1742707329923,7.6984,129.92,129.91,0.04846083]
[1742707330123,15.06730697,129.92,129.91,0.04846083]
[1742707330717,7.7004,129.89,129.87,281.36]
[1742707330919,7.36890697,129.9,129.87,281.36]
[1742707331122,7.36890697,129.9,129.87,254.14]
[1742707331324,7.36890697,129.89,129.84,15.07170697]
[1742707331532,7.36890697,129.87,129.83,7.36890697]
[1742707331735,7.36890697,129.87,129.84,27.22]
[1742707332031,7.76050556,129.86,129.84,0.05084247]
[1742707332232,7.42711253,129.86,129.84,0.05084247]
[1742707332627,15.12931253,129.86,129.84,0.05084247]
[1742707333030,0.05820556,129.86,129.84,0.05084247]
[1742707334025,0.05820556,129.86,129.84,7.75374247]
[1742707334226,0.05820556,129.86,129.84,15.12264944]
[1742707334427,0.05820556,129.86,129.84,7.41974944]
[1742707334726,0.05820556,129.86,129.85,7.7025]
[1742707334932,0.05820556,129.86,129.85,15.07140697]
[1742707336435,0.05820556,129.86,129.84,15.12264944]
[1742707336934,0.05820556,129.86,129.84,0.05084247]
[1742707337432,0.05820556,129.86,129.84,7.41974944]
[1742707338427,0.05820556,129.86,129.85,7.7025]
[1742707340535,0.05820556,129.86,129.85,15.07140697]
[1742707341233,0.05820556,129.86,129.84,0.05084247]
[1742707341234,0.05820556,129.86,129.84,7.75374247]
[1742707341434,7.42711253,129.86,129.84,0.05084247]
[1742707342134,0.05820556,129.86,129.84,0.05084247]
[1742707342734,7.76020556,129.86,129.84,0.05084247]
[1742707343129,15.12911253,129.86,129.84,0.05084247]
[1742707345030,7.76020556,129.86,129.84,0.05084247]
[1742707347136,0.05820556,129.86,129.84,0.05084247]
[1742707348336,7.76020556,129.86,129.84,0.05084247]
[1742707349832,0.05820556,129.86,129.76,1.34042061]
[1742707350138,7.36890697,129.78,129.73,7.36890697]
[1742707350333,7.36890697,129.77,129.73,7.36890697]
[1742707350639,7.7079,129.76,129.73,7.36890697]
[1742707351035,7.76045097,129.76,129.73,7.42382226]
[1742707352740,7.7085,129.75,129.73,7.42382226]
[1742707353841,7.7085,129.75,129.73,34.66382226]
[1742707355746,7.7085,129.75,129.73,27.29491529]
[1742707356942,7.7085,129.75,129.73,0.05491529]
[1742707357145,7.7085,129.75,129.73,27.29491529]
[1742707366357,7.76055097,129.76,129.73,35.00441529]
[1742707367355,0.05255097,129.76,129.74,7.7089]
[1742707367552,0.05255097,129.76,129.73,34.66382226]
[1742707369355,0.05255097,129.76,129.74,7.7087]
[1742707370058,0.05255097,129.76,129.75,7.7085]
[1742707383773,0.05255097,129.76,129.73,27.31491529]
[1742707384265,7.76075097,129.76,129.73,27.31491529]
[1742707384572,0.05255097,129.76,129.73,27.31491529]
[1742707384768,7.42145794,129.76,129.73,27.31491529]
[1742707384972,7.36890697,129.75,129.73,27.31491529]
[1742707385166,7.36890697,129.75,129.73,0.05491529]
[1742707385362,7.36890697,129.74,129.73,0.05491529]
[1742707385565,15.12945794,129.76,129.73,0.05491529]
[1742707387981,7.42145794,129.76,129.73,7.76441529]
[1742707388382,7.42145794,129.76,129.73,0.05491529]
[1742707389084,7.7088,129.75,129.73,0.05491529]
[1742707391788,15.12955794,129.76,129.73,7.76421529]
[1742707391990,7.42145794,129.76,129.73,0.05491529]
[1742707392486,0.05255097,129.76,129.73,0.05491529]
[1742707392788,0.05255097,129.76,129.74,7.7089]
[1742707393884,0.05255097,129.76,129.75,7.7085]
[1742707394485,18.04160219,129.81,129.78,7.7066]
[1742707394685,10.67269522,129.81,129.77,27.26]
[1742707394894,10.67269522,129.81,129.77,34.62890697]
[1742707395189,18.37789522,129.81,129.78,7.7064]
[1742707395383,10.67269522,129.81,129.78,7.7064]
[1742707395589,10.7317896,129.81,129.78,15.12488493]
[1742707395787,10.7317896,129.81,129.79,7.36890697]
[1742707395991,10.7317896,129.81,129.8,34.62890697]
[1742707396390,10.7317896,129.81,129.8,27.26]
[1742707396988,0.05909438,129.81,129.8,27.26]
[1742707397488,0.05909438,129.81,129.8,34.9655]
[1742707398291,0.05909438,129.81,129.8,27.26]
[1742707400395,0.05909438,129.81,129.8,34.9655]
[1742707400795,0.05909438,129.81,129.8,27.26]
[1742707402594,0.05909438,129.81,129.8,34.9655]
[1742707407201,0.05909438,129.81,129.8,27.26]
[1742707409198,0.05909438,129.81,129.8,34.9655]
[1742707416906,0.05909438,129.81,129.8,27.26]
[1742707423418,7.76399438,129.81,129.8,27.26]
[1742707426022,0.05909438,129.81,129.8,27.26]
[1742707427221,7.76399438,129.81,129.8,27.26]
[1742707427423,0.05909438,129.81,129.8,27.26]
[1742707434125,0.05909438,129.81,129.8,34.9655]
[1742707434831,7.76399438,129.81,129.8,27.26]
[1742707437131,7.7061,129.79,129.78,27.28957796]
[1742707439932,7.7061,129.79,129.78,0.04957796]
[1742707440831,7.7057,129.8,129.78,0.04957796]
[1742707441033,0.05909438,129.81,129.78,0.04957796]
[1742707441733,7.76419438,129.81,129.78,7.75617796]
[1742707442029,0.05909438,129.81,129.78,0.04957796]
[1742707443029,7.7058,129.8,129.78,0.04957796]
[1742707443229,0.05909438,129.81,129.78,0.04957796]
[1742707444436,7.76429438,129.81,129.78,7.75617796]
[1742707446433,7.7055,129.8,129.78,7.75617796]
[1742707447138,7.76419438,129.81,129.78,7.75617796]
[1742707447834,7.7055,129.8,129.78,0.04957796]
[1742707448632,0.05909438,129.81,129.78,7.41848493]
[1742707448828,0.05909438,129.81,129.8,7.36890697]
[1742707449134,0.05909438,129.81,129.8,34.60890697]
[1742707450535,0.05909438,129.81,129.8,42.31440697]
[1742707451347,0.05909438,129.81,129.8,27.24]
[1742707452039,0.05909438,129.81,129.8,34.9455]
[1742707452534,7.36890697,129.86,129.8,34.60890697]
[1742707452740,15.65604855,129.87,129.83,7.36890697]
[1742707453043,11.34430697,129.87,129.83,27.24]
[1742707453736,7.75468717,129.86,129.84,0.05563398]
[1742707454637,7.7025,129.85,129.84,0.05563398]
[1742707455541,15.07140697,129.85,129.84,0.05563398]
[1742707456435,7.7051,129.81,129.78,17.19640697]
[1742707456629,7.7051,129.81,129.8,27.24]
[1742707457129,7.7056,129.8,129.78,29.361]
[1742707457732,7.75429986,129.8,129.78,29.41014839]
[1742707458140,7.75429986,129.8,129.78,0.04914839]
[1742707458336,7.7061,129.79,129.78,0.04914839]
[1742707458742,0.04869986,129.8,129.78,0.04914839]
[1742707459543,7.75449986,129.8,129.78,0.04914839]
[1742707461439,0.04869986,129.8,129.78,7.75564839]
[1742707462946,7.75419986,129.8,129.78,0.04914839]
[1742707463146,0.04869986,129.8,129.78,0.04914839]
[1742707464051,0.04869986,129.8,129.78,7.75554839]
[1742707464247,0.04869986,129.8,129.79,7.36890697]
[1742707465152,0.04869986,129.8,129.79,15.07500697]
[1742707466553,0.04869986,129.8,129.78,15.12445536]
[1742707469454,0.04869986,129.8,129.78,7.75554839]
[1742707482473,0.04869986,129.8,129.79,7.7061]
[1742707482874,0.04869986,129.8,129.78,0.04914839]
[1742707483774,0.04869986,129.8,129.79,15.07500697]
[1742707493176,11.34430697,129.87,129.83,7.7035]
[1742707493376,3.9754,129.87,129.83,42.31240697]
[1742707493976,7.7015,129.87,129.84,7.7031]
[1742707494172,7.36890697,129.88,129.83,34.60890697]
[1742707494376,0.05055902,129.87,129.84,7.42643039]
[1742707494575,0.05055902,129.87,129.85,7.7021]
[1742707494875,0.05055902,129.87,129.84,7.42643039]
[1742707495084,0.05055902,129.87,129.86,15.07080697]
[1742707495281,0.05055902,129.87,129.86,42.29080697]
[1742707495681,0.05055902,129.87,129.86,34.58890697]
[1742707495884,0.05055902,129.87,129.86,27.22]
[1742707496678,0.05055902,129.87,129.84,0.05752342]
[1742707496679,7.41946599,129.87,129.84,0.05752342]
[1742707496878,7.36890697,129.86,129.84,0.05752342]
[1742707497284,7.7025,129.85,129.84,0.05752342]
[1742707497689,15.07140697,129.85,129.84,0.05752342]
[1742707501490,19.14130697,129.85,129.84,0.05752342]
[1742707510999,19.14130697,129.85,129.78,36.65200697]
[1742707511000,11.43880697,129.85,129.78,36.65200697]
[1742707511195,7.36890697,129.83,129.78,36.65200697]
[1742707511392,11.43880697,129.85,129.8,7.36890697]
[1742707511708,9.42820697,129.85,129.81,27.22]
[1742707511887,9.42820697,129.85,129.82,7.7043]
[1742707512094,0.04939985,129.84,129.82,7.75469895]
[1742707512295,0.04939985,129.84,129.82,0.05039895]
[1742707513097,7.75269985,129.84,129.82,0.05039895]
[1742707513297,0.04939985,129.84,129.82,0.05039895]
[1742707513498,7.36890697,129.83,129.82,0.05039895]
[1742707513998,15.07260697,129.83,129.82,0.05039895]
[1742707520400,7.36890697,129.83,129.82,0.05039895]
[1742707521103,15.07260697,129.83,129.82,0.05039895]
[1742707521403,7.36890697,129.83,129.82,0.05039895]
[1742707523705,0.04939985,129.84,129.82,7.75469895]
[1742707525804,0.04939985,129.84,129.82,0.05039895]
[1742707527709,7.7037,129.83,129.82,0.05039895]
[1742707531007,15.07260697,129.83,129.82,0.05039895]
[1742707543909,0.04939985,129.84,129.82,0.05039895]
[1742707544506,0.04939985,129.84,129.82,27.27039895]
[1742707544710,0.04939985,129.84,129.82,34.97439895]
[1742707547416,7.36890697,129.83,129.82,0.05039895]
[1742707548014,15.07260697,129.83,129.82,0.05039895]
[1742707554918,7.36890697,129.83,129.82,0.05039895]
[1742707555726,15.07260697,129.83,129.82,0.05039895]
[1742707563230,7.36890697,129.83,129.82,0.05039895]
[1742707563431,0.04939985,129.84,129.82,0.05039895]
[1742707564830,0.04939985,129.84,129.82,34.63930592]
[1742707565238,7.36890697,129.87,129.82,34.63930592]
[1742707565640,7.7014,129.87,129.84,7.7028]
[1742707566335,7.75590401,129.87,129.84,7.7028]
[1742707567840,0.05450401,129.87,129.85,7.7025]
[1742707568234,0.05450401,129.87,129.85,7.76057026]
[1742707569743,7.42341098,129.87,129.85,7.76057026]
[1742707572239,0.05450401,129.87,129.86,7.7019]
[1742707572442,0.05450401,129.87,129.85,27.27807026]
[1742707573144,7.42341098,129.87,129.85,27.27807026]
[1742707573437,15.12481098,129.87,129.85,27.27807026]
[1742707574042,15.07080697,129.86,129.85,0.05807026]
[1742707576050,7.7046,129.82,129.8,27.22]
[1742707576345,15.07350697,129.82,129.79,27.22]
[1742707577247,15.12743253,129.82,129.79,27.27588275]
[1742707577445,7.705,129.81,129.79,0.05588275]
[1742707579750,15.12733253,129.82,129.79,0.05588275]
[1742707580351,7.42283253,129.82,129.79,7.76188275]
[1742707580650,0.05392556,129.82,129.79,7.76188275]
[1742707581649,0.05392556,129.82,129.8,7.7054]
[1742707584441,0.05392556,129.82,129.81,7.7049]
[1742707585144,0.05392556,129.82,129.81,34.9249]
[1742707586147,0.05392556,129.82,129.81,27.22]
[1742707586350,0.05392556,129.82,129.79,34.64478972]
[1742707586752,0.05392556,129.82,129.79,42.35078972]
[1742707586953,0.05392556,129.82,129.79,27.27588275]
[1742707587554,7.75842556,129.82,129.79,27.27588275]
[1742707588153,0.05392556,129.82,129.79,34.98198275]
[1742707589156,7.75832556,129.82,129.79,34.98198275]
[1742707590556,7.75832556,129.82,129.79,27.27588275]
[1742707591166,7.7051,129.81,129.79,27.27588275]
[1742707593363,15.12723253,129.82,129.79,27.27588275]
[1742707596166,15.12723253,129.82,129.79,34.98168275]
[1742707596364,7.42283253,129.82,129.79,34.98168275]
[1742707596660,0.05392556,129.82,129.81,7.7049]
[1742707601766,0.05392556,129.82,129.81,15.07380697]
[1742707602161,34.9217,129.87,129.81,7.36890697]
[1742707602371,7.7017,129.87,129.83,7.36890697]
[1742707602564,7.7017,129.87,129.83,34.58890697]
[1742707602761,7.7017,129.87,129.84,7.7031]
[1742707603467,7.75993296,129.87,129.84,7.75404508]
[1742707604364,7.702,129.86,129.84,0.05094508]
[1742707604569,0.05823296,129.87,129.84,0.05094508]
[1742707605260,7.75993296,129.87,129.84,0.05094508]
[1742707605464,7.75993296,129.87,129.84,7.75394508]
[1742707606672,7.75993296,129.87,129.84,0.05094508]
[1742707607276,7.702,129.86,129.84,0.05094508]
[1742707615277,7.7025,129.85,129.84,0.05094508]
[1742707625489,0.05823296,129.87,129.84,0.05094508]
[1742707625689,0.05823296,129.87,129.86,7.7019]
[1742707625884,0.05823296,129.87,129.86,42.27080697]
[1742707626282,7.6999,129.9,129.87,7.701]
[1742707626482,7.36890697,129.91,129.87,7.36890697]
[1742707626989,15.06840697,129.91,129.87,15.07000697]
[1742707627485,0.055539,129.9,129.88,7.75665557]